fUST/lending_fUST_20250206
["ID","MTS","AMOUNT","RATE_DAILY","PERIOD"]
[351933197,1738848652228,-500.0,0.00014246,2]
[351933198,1738848652238,-267.562872,0.00014246,2]
[351933199,1738848652248,-500.0,0.00014246,2]
[351933200,1738848652261,-267.562872,0.00014246,2]
[351933201,1738848652271,-783.79,0.00014246,2]
[351933202,1738848652280,-183.847759,0.00014246,2]
[351933203,1738848652290,-183.847759,0.00014246,2]
[351933204,1738848652301,-668.76,0.00014246,2]
[351933205,1738848652311,-151.0,0.00014246,2]
[351933206,1738848652322,-637.05,0.00014246,2]
[351933207,1738848652332,-151.0,0.00014246,2]
[351933208,1738848652342,-3933.0,0.00014246,2]
[351933209,1738848652352,-1052.09,0.00014246,2]
[351933210,1738848652361,-14485.53,0.00014246,2]
[351933211,1738848652371,-1333.69,0.00014246,2]
[351933212,1738848652380,-2005.53,0.00014246,2]
[351933213,1738848652390,-3239.25,0.00014246,2]
[351933214,1738848652399,-65.02832943,0.00014246,2]
[351933215,1738848652567,-434.97167057,0.00014246,2]
[351933216,1738848652577,-1367.75,0.00014246,2]
[351933217,1738848652587,-500.0,0.00014246,2]
[351933218,1738848652596,-1082.67,0.00014246,2]
[351933219,1738848652605,-6597.32,0.00014246,2]
[351933220,1738848652615,-603.25,0.00014246,2]
[351933221,1738848652624,-500.0,0.00014246,2]
[351933222,1738848652633,-1151.12,0.00014246,2]
[351933223,1738848652642,-584.1,0.00014246,2]
[351933224,1738848652652,-500.0,0.00014246,2]
[351933225,1738848652661,-1412.29,0.00014246,2]
[351933226,1738848652670,-785.69,0.00014246,2]
[351933227,1738848652679,-151.0,0.00014246,2]
[351933228,1738848652689,-761.62,0.00014246,2]
[351933229,1738848652701,-151.0,0.00014246,2]
[351933230,1738848652711,-36000.32031574,0.00014246,2]
[351933231,1738848652724,-4014.15386362,0.00014246,2]
[351933232,1738848652871,-359.50100004,0.00013698,2]
[351933233,1738848653351,-2200.0000005,0.00012786,2]
[351933234,1738848654168,-771.22271851,0.00012786,2]
[351933235,1738848654180,-9728.88964591,0.00012786,2]
[351933236,1738848654192,-9840.0,0.00012786,2]
[351933293,1738849369987,2287.1,0.000192,120]
[351933299,1738849538159,-230.89516322,0.0001232,2]
[351933300,1738849538181,-281.72667656,0.00012444,2]
[351933301,1738849643147,-250.0,0.0001257,2]
[351933302,1738849643172,-229.13590912,0.00012786,2]
[351933303,1738849644129,-1753.02478827,0.00012786,2]
[351933304,1738849647178,-377.72693769,0.00012786,2]
[351933305,1738849647202,-300.0,0.00012999,2]
[351933306,1738849647224,-7438.69753278,0.00013,2]
[351933307,1738849647247,-800.0,0.0001315,2]
[351933308,1738849647485,-814.72027519,0.00013598,3]
[351933309,1738849647509,-178.73971798,0.00013598,2]
[351933310,1738849647533,-500.0,0.00013673,2]
[351933311,1738849647562,-358.83571752,0.00013697,2]
[351933312,1738849647585,-500.0,0.00013698,2]
[351933313,1738849647609,-500.0,0.00013698,2]
[351933314,1738849647636,-500.0,0.00013698,2]
[351933315,1738849647660,-500.0,0.00013698,2]
[351933316,1738849647683,-500.0,0.00013698,2]
[351933317,1738849647706,-12.5450418,0.00013698,2]
[351933318,1738849706837,222.14,8e-05,2]
[351933319,1738849767103,-303.0,0.000126,2]
[351933320,1738849767126,-303.0,0.000126,2]
[351933321,1738849767148,-303.0,0.000126,2]
[351933322,1738849767170,-275.97898736,0.000126,2]
[351933349,1738849831974,-27.02101264,0.000126,2]
[351933350,1738849831982,-250.0,0.00012851,2]
[351933351,1738849831990,-7438.69753278,0.00013,2]
[351933352,1738849831999,-633.40330594,0.0001315,2]
[351933353,1738849832034,-166.59669406,0.0001315,2]
[351933354,1738849832041,-500.0,0.00013673,2]
[351933355,1738849832048,-300.0,0.00013697,2]
[351933356,1738849832059,-500.0,0.00013698,2]
[351933357,1738849832066,-588.34928311,0.00013698,2]
[351933359,1738849832074,-500.0,0.00013698,2]
[351933361,1738849832083,-500.0,0.00013698,2]
[351933363,1738849832091,-500.0,0.00013698,2]
[351933364,1738849832100,-414.29339293,0.00013698,2]
[351933365,1738849832107,-500.0,0.00013698,2]
[351933366,1738849832115,-500.0,0.00013698,2]
[351933367,1738849832123,-502.27895175,0.00013698,2]
[351933368,1738849832131,-500.0,0.00013698,2]
[351933370,1738849832139,-500.0,0.00013698,2]
[351933371,1738849832147,-500.31940804,0.00013698,2]
[351933372,1738849832155,-500.0,0.00013698,2]
[351933373,1738849832162,-500.0,0.00013698,2]
[351933374,1738849832169,-384.31256995,0.00013698,2]
[351933375,1738849832176,-500.0,0.00013698,2]
[351933376,1738849832183,-29.23002132,0.00013698,2]
[351933377,1738849832192,-470.76997868,0.00013698,2]
[351933378,1738849832199,-500.0,0.00013698,2]
[351933379,1738849832206,-500.0,0.00013698,2]
[351933380,1738849832212,-500.0,0.00013698,2]
[351933381,1738849832219,-500.0,0.00013698,2]
[351933382,1738849832226,-55.46279273,0.00013698,2]
[351933383,1738849832235,-444.53720727,0.00013698,2]
[351933384,1738849832242,-155.55697632,0.00013698,2]
[351933385,1738849832248,-500.0,0.00013698,2]
[351933386,1738849832255,-500.44722698,0.00013698,2]
[351933387,1738849832263,-366.75858943,0.00013698,2]
[351933388,1738849832271,-147.51644131,0.00013698,2]
[351933389,1738849832279,-500.0,0.00013698,2]
[351933390,1738849832287,-500.0,0.00013698,2]
[351933391,1738849832295,-500.0,0.00013698,2]
[351933392,1738849832302,-500.41946604,0.00013698,2]
[351933393,1738849832312,-500.0,0.00013698,2]
[351933394,1738849832318,-500.0,0.00013698,2]
[351933395,1738849832325,-275.46039503,0.00013698,2]
[351933396,1738849832332,-500.0,0.00013698,2]
[351933397,1738849832338,-506.90742783,0.00013698,2]
[351933398,1738849832344,-500.0,0.00013698,2]
[351933399,1738849832351,-500.0,0.00013698,2]
[351933400,1738849832357,-500.0,0.00013698,2]
[351933401,1738849832364,-500.0,0.00013698,2]
[351933402,1738849832371,-503.10080961,0.00013698,2]
[351933403,1738849832379,-500.0,0.00013698,2]
[351933404,1738849832387,-500.0,0.00013698,2]
[351933405,1738849832393,-500.0,0.00013698,2]
[351933406,1738849832400,-424.0897753,0.00013698,2]
[351933407,1738849832407,-500.0,0.00013698,2]
[351933408,1738849832413,-500.0,0.00013698,2]
[351933409,1738849832581,-500.0,0.00013698,2]
[351933410,1738849832594,-500.0,0.00013698,2]
[351933411,1738849832602,-509.97871439,0.00013698,2]
[351933412,1738849832612,-500.0,0.00013698,2]
[351933413,1738849832622,-500.0,0.00013698,2]
[351933414,1738849832632,-500.0,0.00013698,2]
[351933415,1738849832641,-500.0,0.00013698,2]
[351933416,1738849832650,-500.0,0.00013698,2]
[351933417,1738849832660,-500.0,0.00013698,2]
[351933418,1738849832670,-500.0,0.00013698,2]
[351933419,1738849832680,-504.29003752,0.00013698,2]
[351933420,1738849832690,-754.64,0.00013698,2]
[351933421,1738849832699,-500.0,0.00013698,2]
[351933422,1738849832709,-348.08757905,0.00013698,2]
[351933423,1738849832719,-193.03023526,0.00013698,2]
[351933424,1738849832728,-501.14547502,0.00013698,2]
[351933425,1738849832737,-502.05271851,0.00013698,2]
[351933426,1738849832747,-500.0,0.00013698,2]
[351933427,1738849832757,-500.0,0.00013698,2]
[351933428,1738849832767,-611.66,0.00013698,2]
[351933429,1738849832777,-500.85798888,0.00013698,2]
[351933430,1738849832786,-500.0,0.00013698,2]
[351933431,1738849832796,-500.0,0.00013698,2]
[351933432,1738849832806,-1269.66,0.00013698,2]
[351933433,1738849832816,-500.0,0.00013698,2]
[351933434,1738849832825,-535.56,0.00013698,2]
[351933435,1738849832835,-500.0,0.00013698,2]
[351933436,1738849832844,-500.0,0.00013698,2]
[351933437,1738849832853,-530.51,0.00013698,2]
[351933438,1738849832863,-364.44984337,0.00013698,2]
[351933439,1738849832872,-500.0,0.00013698,2]
[351933440,1738849832882,-733.05,0.00013698,2]
[351933441,1738849832892,-772.26,0.00013698,2]
[351933442,1738849832901,-500.0,0.00013698,2]
[351933443,1738849832911,-500.0,0.00013698,2]
[351933444,1738849832920,-604.21647467,0.00013698,2]
[351933445,1738849832930,-500.0,0.00013698,2]
[351933446,1738849832940,-500.0,0.00013698,2]
[351933447,1738849832950,-500.0,0.00013698,2]
[351933448,1738849832959,-500.0,0.00013698,2]
[351933449,1738849832969,-502.54,0.00013698,2]
[351933450,1738849832978,-660.32,0.00013698,2]
[351933451,1738849832988,-500.0,0.00013698,2]
[351933452,1738849832998,-500.0,0.00013698,2]
[351933453,1738849833008,-500.0,0.00013698,2]
[351933454,1738849833017,-500.0,0.00013698,2]
[351933455,1738849833027,-500.0,0.00013698,2]
[351933456,1738849833036,-500.0,0.00013698,2]
[351933457,1738849833046,-500.0,0.00013698,2]
[351933458,1738849833057,-500.0,0.00013698,2]
[351933459,1738849833067,-500.0,0.00013698,2]
[351933460,1738849833077,-622.01,0.00013698,2]
[351933461,1738849833087,-500.0,0.00013698,2]
[351933462,1738849833098,-500.0,0.00013698,2]
[351933463,1738849833108,-500.0,0.00013698,2]
[351933464,1738849833118,-500.0,0.00013698,2]
[351933465,1738849833129,-1401.68,0.00013698,2]
[351933466,1738849833139,-500.0,0.00013698,2]
[351933467,1738849833149,-366.55202595,0.00013698,2]
[351933468,1738849833160,-500.0,0.00013698,2]
[351933469,1738849833170,-500.0,0.00013698,2]
[351933470,1738849833180,-1499.19,0.00013698,2]
[351933471,1738849833190,-500.0,0.00013698,2]
[351933472,1738849833200,-1147.21,0.00013698,2]
[351933473,1738849833209,-500.0,0.00013698,2]
[351933474,1738849833220,-500.0,0.00013698,2]
[351933475,1738849833230,-500.0,0.00013698,2]
[351933476,1738849833240,-500.0,0.00013698,2]
[351933477,1738849833249,-500.0,0.00013698,2]
[351933478,1738849833260,-500.0,0.00013698,2]
[351933479,1738849833269,-500.0,0.00013698,2]
[351933480,1738849833279,-455.59426665,0.00013698,2]
[351933481,1738849833289,-500.0,0.00013698,2]
[351933482,1738849833299,-500.0,0.00013698,2]
[351933483,1738849833312,-500.0,0.00013698,2]
[351933484,1738849833321,-502.58504685,0.00013698,2]
[351933485,1738849833332,-500.0,0.00013698,2]
[351933486,1738849833343,-209.709451,0.00013698,2]
[351933487,1738849833353,-500.0,0.00013698,2]
[351933488,1738849833363,-541.53868586,0.00013698,2]
[351933489,1738849833373,-274.07904968,0.00013698,2]
[351933490,1738849833383,-506.31426783,0.00013698,2]
[351933491,1738849833393,-500.0,0.00013698,2]
[351933492,1738849833403,-500.0,0.00013698,2]
[351933493,1738849833413,-500.0,0.00013698,2]
[351933494,1738849833424,-382.041907,0.00013698,2]
[351933495,1738849833433,-500.0,0.00013698,2]
[351933496,1738849833443,-500.0,0.00013698,2]
[351933497,1738849833453,-500.0,0.00013698,2]
[351933498,1738849833462,-500.0,0.00013698,2]
[351933499,1738849833473,-545.77,0.00013698,2]
[351933500,1738849833483,-500.0,0.00013698,2]
[351933501,1738849833493,-500.0,0.00013698,2]
[351933502,1738849833504,-500.0,0.00013698,2]
[351933503,1738849833514,-500.0,0.00013698,2]
[351933504,1738849833525,-500.0,0.00013698,2]
[351933505,1738849833535,-367.8416871,0.00013698,2]
[351933506,1738849833546,-500.0,0.00013698,2]
[351933507,1738849833561,-500.9176787,0.00013698,2]
[351933508,1738849833574,-500.0,0.00013698,2]
[351933509,1738849833586,-500.0,0.00013698,2]
[351933510,1738849833601,-1221.3,0.00013698,2]
[351933511,1738849833611,-500.0,0.00013698,2]
[351933512,1738849833621,-500.0,0.00013698,2]
[351933513,1738849833632,-500.0,0.00013698,2]
[351933514,1738849833643,-500.0,0.00013698,2]
[351933515,1738849833653,-500.0,0.00013698,2]
[351933516,1738849833664,-500.0,0.00013698,2]
[351933517,1738849833675,-500.0,0.00013698,2]
[351933518,1738849833686,-500.0,0.00013698,2]
[351933519,1738849833696,-500.0,0.00013698,2]
[351933520,1738849833705,-321.88725021,0.00013698,2]
[351933521,1738849833715,-500.0,0.00013698,2]
[351933522,1738849833725,-500.0,0.00013698,2]
[351933523,1738849833736,-500.0,0.00013698,2]
[351933524,1738849833746,-697.88,0.00013698,2]
[351933525,1738849833756,-500.0,0.00013698,2]
[351933526,1738849833766,-1046.97,0.00013698,2]
[351933527,1738849833776,-500.0,0.00013698,2]
[351933528,1738849833786,-513.67935146,0.00013698,2]
[351933529,1738849833797,-500.0,0.00013698,2]
[351933530,1738849833811,-500.0,0.00013698,2]
[351933531,1738849833823,-500.0,0.00013698,2]
[351933532,1738849833833,-1351.13,0.00013698,2]
[351933533,1738849833843,-500.0,0.00013698,2]
[351933534,1738849833854,-500.0,0.00013698,2]
[351933535,1738849833864,-500.0,0.00013698,2]
[351933536,1738849833875,-500.0,0.00013698,2]
[351933537,1738849833886,-500.0,0.00013698,2]
[351933538,1738849833896,-500.27986296,0.00013698,2]
[351933539,1738849833905,-500.0,0.00013698,2]
[351933540,1738849833915,-541.13220611,0.00013698,2]
[351933541,1738849833924,-500.0,0.00013698,2]
[351933542,1738849833934,-500.0,0.00013698,2]
[351933543,1738849833943,-500.0,0.00013698,2]
[351933544,1738849833953,-500.89349764,0.00013698,2]
[351933545,1738849833962,-500.0,0.00013698,2]
[351933546,1738849833974,-500.0,0.00013698,2]
[351933547,1738849833985,-508.53894772,0.00013698,2]
[351933548,1738849833995,-500.0,0.00013698,2]
[351933549,1738849834007,-500.0,0.00013698,2]
[351933550,1738849834017,-500.0,0.00013698,2]
[351933551,1738849834027,-501.37526044,0.00013698,2]
[351933552,1738849834036,-500.0,0.00013698,2]
[351933553,1738849834046,-500.0,0.00013698,2]
[351933554,1738849834056,-500.0,0.00013698,2]
[351933555,1738849834067,-500.0,0.00013698,2]
[351933556,1738849834077,-500.0,0.00013698,2]
[351933557,1738849834087,-3040.03,0.00013698,2]
[351933558,1738849834097,-500.0,0.00013698,2]
[351933559,1738849834107,-520.39,0.00013698,2]
[351933560,1738849834117,-500.0,0.00013698,2]
[351933561,1738849834127,-726.45,0.00013698,2]
[351933562,1738849834136,-500.0,0.00013698,2]
[351933563,1738849834146,-500.0,0.00013698,2]
[351933564,1738849834155,-500.0,0.00013698,2]
[351933565,1738849834165,-500.0,0.00013698,2]
[351933566,1738849834176,-500.0,0.00013698,2]
[351933567,1738849834186,-500.0,0.00013698,2]
[351933568,1738849834196,-500.0,0.00013698,2]
[351933569,1738849834205,-1329.22617505,0.00013698,2]
[351933570,1738849834223,-2300.63784516,0.00013698,2]
[351933571,1738849834236,-8441.41597979,0.00013698,2]
[351933572,1738849834245,-500.0,0.00013698,2]
[351933573,1738849834255,-876.74,0.00013698,2]
[351933574,1738849834265,-500.0,0.00013698,2]
[351933575,1738849834276,-500.0,0.00013698,2]
[351933576,1738849834287,-1215.7,0.00013698,2]
[351933577,1738849834296,-556.94651755,0.00013698,2]
[351933578,1738849834306,-579.24,0.00013698,2]
[351933579,1738849834317,-500.0,0.00013698,2]
[351933580,1738849834327,-1111.41,0.00013698,2]
[351933581,1738849834338,-500.0,0.00013698,2]
[351933582,1738849834349,-157.36397208,0.00013698,2]
[351933583,1738849834359,-500.0,0.00013698,2]
[351933584,1738849834368,-500.0,0.00013698,2]
[351933585,1738849834380,-500.0,0.00013698,2]
[351933586,1738849834389,-500.0,0.00013698,2]
[351933587,1738849834398,-857.11,0.00013698,2]
[351933588,1738849834408,-2699.38,0.00013698,2]
[351933589,1738849834417,-586.46444235,0.00013698,2]
[351933590,1738849834426,-500.0,0.00013698,2]
[351933591,1738849834435,-500.0,0.00013698,2]
[351933592,1738849834444,-500.0,0.00013698,2]
[351933593,1738849834454,-500.0,0.00013698,2]
[351933594,1738849834464,-6118.81,0.00013698,2]
[351933595,1738849834474,-500.0,0.00013698,2]
[351933596,1738849834483,-500.0,0.00013698,2]
[351933597,1738849834493,-500.0,0.00013698,2]
[351933598,1738849834503,-1724.98,0.00013698,2]
[351933599,1738849834513,-1051.11,0.00013698,2]
[351933600,1738849834523,-3277.5,0.00013698,2]
[351933601,1738849834533,-500.0,0.00013698,2]
[351933602,1738849834543,-500.0,0.00013698,2]
[351933603,1738849834553,-501.26461619,0.00013698,2]
[351933604,1738849834565,-500.0,0.00013698,2]
[351933605,1738849834575,-500.0,0.00013698,2]
[351933606,1738849834585,-500.0,0.00013698,2]
[351933607,1738849834599,-500.0,0.00013698,2]
[351933608,1738849834609,-501.81,0.00013698,2]
[351933609,1738849834619,-911.31,0.00013698,2]
[351933610,1738849834629,-500.0,0.00013698,2]
[351933611,1738849834638,-500.0,0.00013698,2]
[351933612,1738849834648,-500.0,0.00013698,2]
[351933613,1738849834658,-500.0,0.00013698,2]
[351933614,1738849834667,-500.0,0.00013698,2]
[351933615,1738849834679,-1118.06,0.00013698,2]
[351933616,1738849834688,-487.4549582,0.00013698,2]
[351933617,1738849834698,-500.0,0.00013698,2]
[351933618,1738849834707,-500.0,0.00013698,2]
[351933619,1738849834717,-401.4927269,0.00013698,2]
[351933620,1738849834726,-500.0,0.00013698,2]
[351933621,1738849834736,-500.0,0.00013698,2]
[351933622,1738849834746,-500.0,0.00013698,2]
[351933623,1738849834755,-664.8714267,0.00013698,2]
[351933627,1738849837891,-536.8085733,0.00013698,2]
[351933628,1738849837901,-500.0,0.00013698,2]
[351933629,1738849837911,-227.85561075,0.00013698,2]
[351933633,1738849838126,-272.14438925,0.00013698,2]
[351933635,1738849838135,-18.57275927,0.00013698,2]
[351933637,1738849838148,-4139.93724073,0.00013698,2]
[351933638,1738849838157,-500.0,0.00013698,2]
[351933640,1738849838168,-500.0,0.00013698,2]
[351933642,1738849838178,-500.0,0.00013698,2]
[351933644,1738849838187,-500.0,0.00013698,2]
[351933645,1738849838196,-1201.39,0.00013698,2]
[351933647,1738849838206,-500.0,0.00013698,2]
[351933648,1738849838215,-500.0,0.00013698,2]
[351933649,1738849838225,-500.0,0.00013698,2]
[351933650,1738849838234,-500.0,0.00013698,2]
[351933651,1738849838243,-500.0,0.00013698,2]
[351933652,1738849838252,-500.0,0.00013698,2]
[351933653,1738849838262,-2211.49,0.00013698,2]
[351933654,1738849838271,-492.9554816,0.00013698,2]
[351933655,1738849838282,-500.0,0.00013698,2]
[351933656,1738849838292,-500.0,0.00013698,2]
[351933657,1738849838302,-1018.97,0.00013698,2]
[351933658,1738849838311,-500.0,0.00013698,2]
[351933659,1738849838320,-500.57867955,0.00013698,2]
[351933660,1738849838329,-3151.23830615,0.00013698,2]
[351933661,1738849838342,-2532.33169385,0.00013698,2]
[351933662,1738849838351,-2046.51,0.00013698,2]
[351933663,1738849838361,-500.81490185,0.00013698,2]
[351933664,1738849838371,-500.0,0.00013698,2]
[351933665,1738849838381,-500.0,0.00013698,2]
[351933666,1738849838392,-500.0,0.00013698,2]
[351933667,1738849838401,-500.0,0.00013698,2]
[351933668,1738849838410,-40797.68,0.00013698,2]
[351933669,1738849838419,-500.0,0.00013698,2]
[351933670,1738849838429,-500.0,0.00013698,2]
[351933671,1738849838438,-500.0,0.00013698,2]
[351933672,1738849838447,-500.9944304,0.00013698,2]
[351933673,1738849838457,-698.16,0.00013698,2]
[351933674,1738849838467,-500.0,0.00013698,2]
[351933675,1738849838476,-500.0,0.00013698,2]
[351933676,1738849838486,-500.0,0.00013698,2]
[351933677,1738849838496,-500.0,0.00013698,2]
[351933678,1738849838505,-515.22791306,0.00013698,2]
[351933679,1738849838515,-1682.12,0.00013698,2]
[351933680,1738849838524,-360.59082124,0.00013698,2]
[351933681,1738849838534,-16766.62,0.00013698,2]
[351933682,1738849838543,-500.89598415,0.00013698,2]
[351933683,1738849838553,-500.0,0.00013698,2]
[351933684,1738849838562,-500.0,0.00013698,2]
[351933685,1738849838572,-500.0,0.00013698,2]
[351933686,1738849838581,-500.0,0.00013698,2]
[351933687,1738849838592,-2365.62,0.00013698,2]
[351933688,1738849838603,-500.0,0.00013698,2]
[351933689,1738849838613,-2380.35,0.00013698,2]
[351933690,1738849838623,-505.91623262,0.00013698,2]
[351933691,1738849838633,-500.0,0.00013698,2]
[351933692,1738849838642,-500.0,0.00013698,2]
[351933693,1738849838652,-500.0,0.00013698,2]
[351933694,1738849838661,-500.0,0.00013698,2]
[351933695,1738849838673,-500.0,0.00013698,2]
[351933696,1738849838683,-201.92633535,0.00013698,2]
[351933697,1738849838693,-1507.93,0.00013698,2]
[351933698,1738849838702,-500.22167013,0.00013698,2]
[351933699,1738849838712,-500.07064162,0.00013698,2]
[351933700,1738849838721,-500.0,0.00013698,2]
[351933701,1738849838731,-500.0,0.00013698,2]
[351933702,1738849838740,-644.09,0.00013698,2]
[351933703,1738849838750,-1564.44,0.00013698,2]
[351933704,1738849838759,-500.0,0.00013698,2]
[351933705,1738849838768,-500.0,0.00013698,2]
[351933706,1738849838778,-500.0,0.00013698,2]
[351933707,1738849838787,-703.94,0.00013698,2]
[351933708,1738849838796,-500.0,0.00013698,2]
[351933709,1738849838806,-500.0,0.00013698,2]
[351933710,1738849838817,-1357.54,0.00013698,2]
[351933711,1738849838827,-500.0,0.00013698,2]
[351933712,1738849838835,-500.0,0.00013698,2]
[351933713,1738849838845,-500.0,0.00013698,2]
[351933714,1738849838854,-500.0,0.00013698,2]
[351933715,1738849838863,-513.11074289,0.00013698,2]
[351933716,1738849838873,-506.13247617,0.00013698,2]
[351933717,1738849838882,-501.38986885,0.00013698,2]
[351933718,1738849838891,-500.0,0.00013698,2]
[351933719,1738849838901,-500.0,0.00013698,2]
[351933720,1738849838910,-500.0,0.00013698,2]
[351933721,1738849838919,-558.10898564,0.00013698,2]
[351933722,1738849838929,-780.62,0.00013698,2]
[351933723,1738849838938,-500.0,0.00013698,2]
[351933724,1738849838947,-211.83795287,0.00013698,2]
[351933725,1738849838956,-504.0293553,0.00013698,2]
[351933726,1738849838966,-955.32,0.00013698,2]
[351933727,1738849838976,-500.0,0.00013698,2]
[351933728,1738849838985,-500.0,0.00013698,2]
[351933729,1738849838995,-500.0,0.00013698,2]
[351933730,1738849839005,-500.0,0.00013698,2]
[351933731,1738849839014,-500.0,0.00013698,2]
[351933732,1738849839024,-500.0,0.00013698,2]
[351933733,1738849839034,-500.0,0.00013698,2]
[351933734,1738849839043,-966.89,0.00013698,2]
[351933735,1738849839053,-502.44808444,0.00013698,2]
[351933736,1738849839063,-3605.2,0.00013698,2]
[351933737,1738849839074,-500.0,0.00013698,2]
[351933738,1738849839084,-500.0,0.00013698,2]
[351933739,1738849839093,-500.0,0.00013698,2]
[351933740,1738849839103,-500.0,0.00013698,2]
[351933741,1738849839113,-500.0,0.00013698,2]
[351933742,1738849839274,-4473.78,0.00013698,2]
[351933743,1738849839284,-1512.68,0.00013698,2]
[351933744,1738849839294,-500.0,0.00013698,2]
[351933745,1738849839303,-500.0,0.00013698,2]
[351933746,1738849839316,-500.0,0.00013698,2]
[351933748,1738849839326,-513.0595766,0.00013698,2]
[351933750,1738849839335,-1858.52,0.00013698,2]
[351933751,1738849839345,-500.0,0.00013698,2]
[351933753,1738849839355,-500.0,0.00013698,2]
[351933754,1738849839364,-961.53,0.00013698,2]
[351933755,1738849839373,-875.81,0.00013698,2]
[351933756,1738849839383,-232.91058142,0.00013698,2]
[351933757,1738849839393,-500.0,0.00013698,2]
[351933758,1738849839402,-500.0,0.00013698,2]
[351933759,1738849839411,-500.0,0.00013698,2]
[351933760,1738849839420,-305.08325812,0.00013698,2]
[351933762,1738849839429,-500.0,0.00013698,2]
[351933764,1738849839439,-500.0,0.00013698,2]
[351933765,1738849839448,-500.0,0.00013698,2]
[351933766,1738849839457,-1808.26,0.00013698,2]
[351933767,1738849839467,-3288.75,0.00013698,2]
[351933768,1738849839476,-9267.35,0.00013698,2]
[351933769,1738849839485,-500.0,0.00013698,2]
[351933770,1738849839494,-500.0,0.00013698,2]
[351933771,1738849839503,-500.0,0.00013698,2]
[351933772,1738849839513,-500.0,0.00013698,2]
[351933773,1738849839522,-500.0,0.00013698,2]
[351933775,1738849839532,-500.0,0.00013698,2]
[351933776,1738849839541,-500.0,0.00013698,2]
[351933777,1738849839550,-500.0,0.00013698,2]
[351933778,1738849839559,-500.0,0.00013698,2]
[351933779,1738849839572,-467.40683247,0.00013698,2]
[351933780,1738849839581,-500.0,0.00013698,2]
[351933781,1738849839593,-500.0,0.00013698,2]
[351933783,1738849839603,-500.0,0.00013698,2]
[351933784,1738849839612,-500.0,0.00013698,2]
[351933786,1738849839622,-388.58976229,0.00013698,2]
[351933788,1738849839631,-833.85,0.00013698,2]
[351933789,1738849839642,-942.47,0.00013698,2]
[351933790,1738849839652,-2160.78,0.00013698,2]
[351933791,1738849839662,-500.0,0.00013698,2]
[351933792,1738849839672,-500.0,0.00013698,2]
[351933793,1738849839681,-787.55,0.00013698,2]
[351933794,1738849839691,-500.0,0.00013698,2]
[351933795,1738849839700,-500.0,0.00013698,2]
[351933796,1738849839710,-387.40076996,0.00013698,2]
[351933797,1738849839719,-500.0,0.00013698,2]
[351933798,1738849839728,-602.47,0.00013698,2]
[351933799,1738849839737,-500.0,0.00013698,2]
[351933800,1738849839747,-500.0,0.00013698,2]
[351933801,1738849839756,-637.05,0.00013698,2]
[351933802,1738849839765,-500.0,0.00013698,2]
[351933803,1738849839775,-500.0,0.00013698,2]
[351933804,1738849839784,-1410.06,0.00013698,2]
[351933805,1738849839794,-643.34571589,0.00013698,2]
[351933806,1738849839803,-500.0,0.00013698,2]
[351933807,1738849839814,-500.0,0.00013698,2]
[351933808,1738849839823,-500.0,0.00013698,2]